[Event "Titled Tuesday Blitz April 25 Early 2023"]
[White "Sarana, Alexey"]
[Black "Vetoshko, Volodymyr"]
[WhiteFideId "24133795"]
[BlackFideId "14122480"]
[WhiteElo "2714"]
[BlackElo "2422"]
[Result "0-1"]
[Round "02"]
[TimeControl "180+2"]
[Date "2023.04.25"]
[WhiteClock "0:00:02"]
[BlackClock "0:00:03"]

1. d4 {[%clk 0:02:56]}  Nf6 {[%clk 0:02:54]} 2. c4 {[%clk 0:02:56]}  g6 {[%clk 0:02:49]} 3. Nc3 {[%clk 0:02:56]}  Bg7 {[%clk 0:02:50]} 4. e4 {[%clk 0:02:57]}  O-O {[%clk 0:02:50]} 5. Be2 {[%clk 0:02:57]}  d6 {[%clk 0:02:51]} 6. Be3 {[%clk 0:02:58]}  Nc6 {[%clk 0:02:46]} 7. d5 {[%clk 0:02:57]}  Ne5 {[%clk 0:02:46]} 8. f4 {[%clk 0:02:57]}  Neg4 {[%clk 0:02:46]} 9. Bd2 {[%clk 0:02:58]}  Nh6 {[%clk 0:02:46]} 10. Nf3 {[%clk 0:02:58]}  c6 {[%clk 0:02:46]} 11. a4 {[%clk 0:02:57]}  e6 {[%clk 0:02:41]} 12. dxe6 {[%clk 0:02:42]}  Bxe6 {[%clk 0:02:42]} 13. O-O {[%clk 0:02:42]}  Nd7 {[%clk 0:02:32]} 14. Ng5 {[%clk 0:02:32]}  Qb6+ {[%clk 0:02:00]} 15. Kh1 {[%clk 0:02:31]}  Qxb2 {[%clk 0:01:57]} 16. Rb1 {[%clk 0:02:16]}  Qa3 {[%clk 0:01:57]} 17. Nxe6 {[%clk 0:02:01]}  fxe6 {[%clk 0:01:57]} 18. Rb3 {[%clk 0:02:01]}  Qc5 {[%clk 0:01:56]} 19. Rxb7 {[%clk 0:02:01]}  Nb6 {[%clk 0:01:40]} 20. a5 {[%clk 0:01:47]}  Nc8 {[%clk 0:00:39]} 21. Na4 {[%clk 0:01:39]}  Qa3 {[%clk 0:00:39]} 22. Rf3 {[%clk 0:00:48]}  Qa2 {[%clk 0:00:39]} 23. h3 {[%clk 0:00:29]}  Nf7 {[%clk 0:00:35]} 24. Rbb3 {[%clk 0:00:29]}  Qxa4 {[%clk 0:00:23]} 25. Qc1 {[%clk 0:00:29]}  Qa1 {[%clk 0:00:19]} 26. Rb1 {[%clk 0:00:29]}  Qf6 {[%clk 0:00:19]} 27. Rb7 {[%clk 0:00:27]}  Qa1 {[%clk 0:00:15]} 28. Rb1 {[%clk 0:00:26]}  Qd4 {[%clk 0:00:13]} 29. Bc3 {[%clk 0:00:15]}  Qxe4 {[%clk 0:00:10]} 30. Bxg7 {[%clk 0:00:15]}  Kxg7 {[%clk 0:00:11]} 31. Qb2+ {[%clk 0:00:16]}  e5 {[%clk 0:00:08]} 32. Rd1 {[%clk 0:00:13]}  Ne7 {[%clk 0:00:06]} 33. fxe5 {[%clk 0:00:08]}  Qxe5 {[%clk 0:00:04]} 34. Qd2 {[%clk 0:00:08]}  Nf5 {[%clk 0:00:04]} 35. Bd3 {[%clk 0:00:09]}  Ng3+ {[%clk 0:00:02]} 36. Kg1 {[%clk 0:00:09]}  Nf5 {[%clk 0:00:01]} 37. Bxf5 {[%clk 0:00:08]}  gxf5 {[%clk 0:00:02]} 38. Re1 {[%clk 0:00:08]}  Qf6 {[%clk 0:00:02]} 39. Rfe3 {[%clk 0:00:05]}  Ne5 {[%clk 0:00:02]} 40. c5 {[%clk 0:00:03]}  f4 {[%clk 0:00:03]} 41. Re4 {[%clk 0:00:03]}  f3 {[%clk 0:00:03]} 42. Qf2 {[%clk 0:00:03]}  fxg2 {[%clk 0:00:03]} 43. Qxg2+ {[%clk 0:00:04]}  Kh8 {[%clk 0:00:03]} 44. Kh1 {[%clk 0:00:04]}  Rg8 {[%clk 0:00:03]} 45. Qe2 {[%clk 0:00:04]}  Qf3+ {[%clk 0:00:03]} 46. Qxf3 {[%clk 0:00:04]}  Nxf3 {[%clk 0:00:04]} 47. Rd1 {[%clk 0:00:05]}  dxc5 {[%clk 0:00:04]} 48. Rf4 {[%clk 0:00:05]}  Raf8 {[%clk 0:00:04]} 49. Rc4 {[%clk 0:00:05]}  Rf7 {[%clk 0:00:03]} 50. Rc3 {[%clk 0:00:04]}  h6 {[%clk 0:00:03]} 51. a6 {[%clk 0:00:04]}  Kh7 {[%clk 0:00:03]} 52. Rf1 {[%clk 0:00:03]}  Rgf8 {[%clk 0:00:03]} 53. Rxc5 {[%clk 0:00:03]}  Nd4 {[%clk 0:00:03]} 54. Rd1 {[%clk 0:00:03]}  Rf4 {[%clk 0:00:02]} 55. Rc4 {[%clk 0:00:02]}  Rf1+ {[%clk 0:00:02]} 56. Rxf1 {[%clk 0:00:03]}  Rxf1+ {[%clk 0:00:03]} 57. Kg2 {[%clk 0:00:03]}  Rd1 {[%clk 0:00:03]} 58. Rb4 {[%clk 0:00:04]}  Nb5 {[%clk 0:00:04]} 59. Rc4 {[%clk 0:00:04]}  Rd6 {[%clk 0:00:03]} 60. Re4 {[%clk 0:00:04]}  Rg6+ {[%clk 0:00:02]} 61. Kh2 {[%clk 0:00:04]}  Nc7 {[%clk 0:00:03]} 62. Re7+ {[%clk 0:00:02]}  Rg7 {[%clk 0:00:03]} 63. Re4 {[%clk 0:00:02]}  Nxa6 {[%clk 0:00:03]} 64. Re6 {[%clk 0:00:03]}  Rc7 {[%clk 0:00:03]} 65. Kg3 {[%clk 0:00:03]}  Nc5 {[%clk 0:00:03]} 66. Re5 {[%clk 0:00:03]}  Nb7 {[%clk 0:00:03]} 67. Kf4 {[%clk 0:00:02]}  c5 {[%clk 0:00:03]} 68. Ke3 {[%clk 0:00:03]}  c4 {[%clk 0:00:04]} 69. Kd2 {[%clk 0:00:04]}  c3+ {[%clk 0:00:04]} 70. Kc2 {[%clk 0:00:05]}  Nd6 {[%clk 0:00:04]} 71. Rd5 {[%clk 0:00:05]}  Nc4 {[%clk 0:00:04]} 72. Rd4 {[%clk 0:00:02]}  Ne3+ {[%clk 0:00:04]} 73. Kc1 {[%clk 0:00:03]}  Nf5 {[%clk 0:00:04]} 74. Rf4 {[%clk 0:00:02]}  Kg6 {[%clk 0:00:04]} 75. Rg4+ {[%clk 0:00:03]}  Kf6 {[%clk 0:00:04]} 76. Ra4 {[%clk 0:00:03]}  Ke5 {[%clk 0:00:04]} 77. Ra6 {[%clk 0:00:02]}  Nd4 {[%clk 0:00:04]} 78. Ra5+ {[%clk 0:00:01]}  Ke4 {[%clk 0:00:04]} 79. Ra4 {[%clk 0:00:02]}  Kd3 {[%clk 0:00:04]} 80. Ra3 {[%clk 0:00:02]}  Ne2+ {[%clk 0:00:05]} 81. Kd1 {[%clk 0:00:02]}  a5 {[%clk 0:00:05]} 82. h4 {[%clk 0:00:03]}  h5 {[%clk 0:00:04]} 83. Ke1 {[%clk 0:00:02]}  a4 {[%clk 0:00:03]} 0-1


[Site "https://www.chess.com"]

[Event "Titled Tuesday Blitz April 25 Early 2023"]
[White "KRUMMEL2008"]
[Black "Martinez Alcantara, Jose Eduardo"]
[BlackFideId "3805662"]
[WhiteElo "2640"]
[BlackElo "2711"]
[Result "0-1"]
[Round "02"]
[TimeControl "180+2"]
[Date "2023.04.25"]
[WhiteClock "0:00:02"]
[BlackClock "0:00:44"]

1. e4 {[%clk 0:03:00]}  c5 {[%clk 0:02:59]} 2. Nf3 {[%clk 0:03:00]}  d6 {[%clk 0:03:00]} 3. d4 {[%clk 0:03:00]}  cxd4 {[%clk 0:03:01]} 4. Nxd4 {[%clk 0:03:01]}  a6 {[%clk 0:03:02]} 5. c4 {[%clk 0:02:55]}  e6 {[%clk 0:03:01]} 6. Nc3 {[%clk 0:02:54]}  b6 {[%clk 0:03:01]} 7. Be2 {[%clk 0:02:54]}  Bb7 {[%clk 0:03:02]} 8. O-O {[%clk 0:02:55]}  Nf6 {[%clk 0:03:02]} 9. f3 {[%clk 0:02:53]}  Nbd7 {[%clk 0:03:02]} 10. Be3 {[%clk 0:02:52]}  Be7 {[%clk 0:03:03]} 11. Rc1 {[%clk 0:02:51]}  O-O {[%clk 0:03:03]} 12. Qd2 {[%clk 0:02:48]}  Qb8 {[%clk 0:03:03]} 13. Rfd1 {[%clk 0:02:48]}  Bd8 {[%clk 0:03:03]} 14. b4 {[%clk 0:02:39]}  Bc7 {[%clk 0:03:03]} 15. Nb3 {[%clk 0:02:28]}  Re8 {[%clk 0:02:58]} 16. c5 {[%clk 0:02:09]}  dxc5 {[%clk 0:02:58]} 17. bxc5 {[%clk 0:02:10]}  Bxh2+ {[%clk 0:02:56]} 18. Kh1 {[%clk 0:02:10]}  bxc5 {[%clk 0:02:52]} 19. Nxc5 {[%clk 0:01:39]}  Nxc5 {[%clk 0:02:42]} 20. Bxc5 {[%clk 0:01:40]}  Bf4 {[%clk 0:02:25]} 21. Be3 {[%clk 0:01:40]}  Bg3 {[%clk 0:02:24]} 22. Qb2 {[%clk 0:00:54]}  Be5 {[%clk 0:01:43]} 23. Bd4 {[%clk 0:00:32]}  Bxd4 {[%clk 0:01:40]} 24. Rxd4 {[%clk 0:00:33]}  Qe5 {[%clk 0:01:40]} 25. Rcd1 {[%clk 0:00:27]}  Bc6 {[%clk 0:01:40]} 26. Qb6 {[%clk 0:00:20]}  Bb5 {[%clk 0:01:27]} 27. Nxb5 {[%clk 0:00:15]}  axb5 {[%clk 0:01:28]} 28. Qxb5 {[%clk 0:00:15]}  Qg3 {[%clk 0:01:19]} 29. Qb2 {[%clk 0:00:11]}  Nh5 {[%clk 0:01:16]} 30. Bf1 {[%clk 0:00:09]}  Nf4 {[%clk 0:01:14]} 31. a4 {[%clk 0:00:08]}  Rf8 {[%clk 0:01:07]} 32. Qd2 {[%clk 0:00:08]}  h5 {[%clk 0:01:03]} 33. Qe1 {[%clk 0:00:05]}  Qg5 {[%clk 0:01:01]} 34. Qd2 {[%clk 0:00:05]}  e5 {[%clk 0:00:59]} 35. Rd7 {[%clk 0:00:05]}  Rxa4 {[%clk 0:00:55]} 36. Qf2 {[%clk 0:00:04]}  h4 {[%clk 0:00:54]} 37. Bb5 {[%clk 0:00:03]}  Rb4 {[%clk 0:00:52]} 38. Bc6 {[%clk 0:00:03]}  Rb6 {[%clk 0:00:44]} 39. Bd5 {[%clk 0:00:04]}  Rf6 {[%clk 0:00:45]} 40. Rc1 {[%clk 0:00:02]}  Nxd5 {[%clk 0:00:44]} 0-1


[Site "https://www.chess.com"]

[Event "Titled Tuesday Blitz April 25 Early 2023"]
[White "Ingebretsen, Jens E"]
[Black "Mamedyarov, Shakhriyar"]
[WhiteFideId "1522965"]
[BlackFideId "13401319"]
[WhiteElo "2213"]
[BlackElo "2704"]
[Result "0-1"]
[Round "02"]
[TimeControl "180+2"]
[Date "2023.04.25"]
[WhiteClock "0:00:09"]
[BlackClock "0:00:46"]

1. c4 {[%clk 0:03:00]}  e5 {[%clk 0:02:56]} 2. Nc3 {[%clk 0:03:01]}  Bb4 {[%clk 0:02:56]} 3. Nd5 {[%clk 0:03:01]}  Be7 {[%clk 0:02:56]} 4. e3 {[%clk 0:03:01]}  Nf6 {[%clk 0:02:56]} 5. Nf3 {[%clk 0:02:57]}  c6 {[%clk 0:02:47]} 6. Nxe7 {[%clk 0:02:43]}  Qxe7 {[%clk 0:02:48]} 7. d3 {[%clk 0:02:42]}  O-O {[%clk 0:02:47]} 8. Be2 {[%clk 0:02:42]}  d5 {[%clk 0:02:45]} 9. O-O {[%clk 0:02:41]}  e4 {[%clk 0:02:44]} 10. dxe4 {[%clk 0:02:41]}  dxe4 {[%clk 0:02:44]} 11. Nd4 {[%clk 0:02:40]}  Nbd7 {[%clk 0:02:43]} 12. b3 {[%clk 0:02:40]}  Ne5 {[%clk 0:02:43]} 13. Bb2 {[%clk 0:02:39]}  Rd8 {[%clk 0:02:41]} 14. Qc2 {[%clk 0:02:33]}  Bg4 {[%clk 0:02:11]} 15. Bxg4 {[%clk 0:02:19]}  Nexg4 {[%clk 0:02:12]} 16. Rad1 {[%clk 0:02:10]}  Qe5 {[%clk 0:02:10]} 17. g3 {[%clk 0:01:52]}  Qh5 {[%clk 0:02:10]} 18. h4 {[%clk 0:01:52]}  Ne5 {[%clk 0:02:10]} 19. Qe2 {[%clk 0:01:21]}  Nfg4 {[%clk 0:02:08]} 20. f3 {[%clk 0:01:05]}  Nf6 {[%clk 0:01:56]} 21. f4 {[%clk 0:00:52]}  Neg4 {[%clk 0:01:51]} 22. Nc2 {[%clk 0:00:41]}  Qf5 {[%clk 0:01:38]} 23. Rxd8+ {[%clk 0:00:40]}  Rxd8 {[%clk 0:01:37]} 24. Rd1 {[%clk 0:00:41]}  Rd3 {[%clk 0:01:31]} 25. Nd4 {[%clk 0:00:34]}  Qg6 {[%clk 0:01:26]} 26. f5 {[%clk 0:00:28]}  Qh5 {[%clk 0:00:53]} 27. Rxd3 {[%clk 0:00:27]}  exd3 {[%clk 0:00:54]} 28. Qxd3 {[%clk 0:00:28]}  h6 {[%clk 0:00:50]} 29. Qe2 {[%clk 0:00:27]}  c5 {[%clk 0:00:49]} 30. Nb5 {[%clk 0:00:19]}  Qxf5 {[%clk 0:00:50]} 31. Qf1 {[%clk 0:00:10]}  Qc2 {[%clk 0:00:46]} 32. Qg2 {[%clk 0:00:09]}  Qb1+ {[%clk 0:00:46]} 0-1


[Site "https://www.chess.com"]

[Event "Titled Tuesday Blitz April 25 Early 2023"]
[White "Lazavik, Denis"]
[Black "Saveliev, Alexei"]
[WhiteFideId "13515110"]
[BlackFideId "24128546"]
[WhiteElo "2560"]
[BlackElo "2271"]
[Result "1-0"]
[Round "02"]
[TimeControl "180+2"]
[Date "2023.04.25"]
[WhiteClock "0:00:48"]
[BlackClock "0:00:43"]

1. d4 {[%clk 0:03:00]}  g6 {[%clk 0:03:00]} 2. c4 {[%clk 0:03:01]}  Bg7 {[%clk 0:03:00]} 3. Nf3 {[%clk 0:03:01]}  d6 {[%clk 0:03:01]} 4. g3 {[%clk 0:03:02]}  Nc6 {[%clk 0:03:01]} 5. Bg2 {[%clk 0:03:02]}  e5 {[%clk 0:03:01]} 6. dxe5 {[%clk 0:03:02]}  Nxe5 {[%clk 0:02:58]} 7. Nxe5 {[%clk 0:03:02]}  Bxe5 {[%clk 0:02:48]} 8. O-O {[%clk 0:03:01]}  Bg7 {[%clk 0:02:45]} 9. Nc3 {[%clk 0:03:00]}  Ne7 {[%clk 0:02:45]} 10. Qd2 {[%clk 0:02:56]}  a5 {[%clk 0:02:35]} 11. b3 {[%clk 0:02:55]}  a4 {[%clk 0:02:35]} 12. Rb1 {[%clk 0:02:45]}  h5 {[%clk 0:02:15]} 13. Nxa4 {[%clk 0:02:41]}  h4 {[%clk 0:02:15]} 14. Bb2 {[%clk 0:02:41]}  Bxb2 {[%clk 0:02:06]} 15. Qxb2 {[%clk 0:02:40]}  O-O {[%clk 0:02:01]} 16. Nc3 {[%clk 0:02:30]}  h3 {[%clk 0:01:59]} 17. Bf3 {[%clk 0:02:26]}  c6 {[%clk 0:01:58]} 18. Ne4 {[%clk 0:02:25]}  f5 {[%clk 0:01:52]} 19. Nf6+ {[%clk 0:02:17]}  Kf7 {[%clk 0:01:49]} 20. Nh7 {[%clk 0:02:17]}  Rh8 {[%clk 0:01:31]} 21. Ng5+ {[%clk 0:02:11]}  Kg8 {[%clk 0:01:32]} 22. Qf6 {[%clk 0:02:12]}  Qf8 {[%clk 0:01:28]} 23. Qxd6 {[%clk 0:02:11]}  f4 {[%clk 0:01:28]} 24. gxf4 {[%clk 0:01:59]}  Bf5 {[%clk 0:01:22]} 25. e4 {[%clk 0:01:58]}  Rd8 {[%clk 0:01:22]} 26. Qe5 {[%clk 0:01:55]}  Bc8 {[%clk 0:01:22]} 27. Rbd1 {[%clk 0:01:53]}  Re8 {[%clk 0:01:23]} 28. Rd6 {[%clk 0:01:50]}  Rh6 {[%clk 0:01:20]} 29. Rf6 {[%clk 0:01:28]}  Qg7 {[%clk 0:01:20]} 30. Rd1 {[%clk 0:01:28]}  Rf8 {[%clk 0:00:57]} 31. Rxf8+ {[%clk 0:01:20]}  Qxf8 {[%clk 0:00:58]} 32. Rd6 {[%clk 0:01:02]}  Rh4 {[%clk 0:00:58]} 33. Rf6 {[%clk 0:00:55]}  Qd8 {[%clk 0:00:58]} 34. Rf7 {[%clk 0:00:51]}  Nf5 {[%clk 0:00:43]} 35. exf5 {[%clk 0:00:48]} 1-0


[Site "https://www.chess.com"]

[Event "Titled Tuesday Blitz April 25 Early 2023"]
[White "Deac, Bogdan-Daniel"]
[Black "Ibadov, Dashgyn"]
[WhiteFideId "1226380"]
[BlackFideId "24107514"]
[WhiteElo "2649"]
[BlackElo "2208"]
[Result "1-0"]
[Round "02"]
[TimeControl "180+2"]
[Date "2023.04.25"]
[WhiteClock "0:00:51"]
[BlackClock "0:00:02"]

1. b3 {[%clk 0:03:00]}  d5 {[%clk 0:02:57]} 2. Bb2 {[%clk 0:03:01]}  Nf6 {[%clk 0:02:57]} 3. e3 {[%clk 0:03:01]}  Bf5 {[%clk 0:02:57]} 4. c4 {[%clk 0:03:01]}  e6 {[%clk 0:02:57]} 5. cxd5 {[%clk 0:03:02]}  exd5 {[%clk 0:02:57]} 6. Qf3 {[%clk 0:03:02]}  Be4 {[%clk 0:02:51]} 7. Bxf6 {[%clk 0:03:00]}  gxf6 {[%clk 0:02:49]} 8. Qh5 {[%clk 0:02:56]}  Qd6 {[%clk 0:02:31]} 9. Nc3 {[%clk 0:02:53]}  Nd7 {[%clk 0:02:22]} 10. f3 {[%clk 0:02:18]}  Bg6 {[%clk 0:02:21]} 11. Qxd5 {[%clk 0:02:17]}  Qxd5 {[%clk 0:02:21]} 12. Nxd5 {[%clk 0:02:17]}  O-O-O {[%clk 0:02:20]} 13. Nf4 {[%clk 0:02:17]}  Bb4 {[%clk 0:02:15]} 14. Nxg6 {[%clk 0:02:13]}  hxg6 {[%clk 0:02:10]} 15. a3 {[%clk 0:02:12]}  Ba5 {[%clk 0:02:10]} 16. b4 {[%clk 0:02:07]}  Bb6 {[%clk 0:02:10]} 17. f4 {[%clk 0:02:07]}  g5 {[%clk 0:01:45]} 18. g3 {[%clk 0:02:05]}  Rhe8 {[%clk 0:01:05]} 19. Bc4 {[%clk 0:01:51]}  Re7 {[%clk 0:00:52]} 20. Nf3 {[%clk 0:01:48]}  Nf8 {[%clk 0:00:30]} 21. fxg5 {[%clk 0:01:44]}  fxg5 {[%clk 0:00:28]} 22. Nxg5 {[%clk 0:01:45]}  f6 {[%clk 0:00:19]} 23. Nf3 {[%clk 0:01:43]}  Ng6 {[%clk 0:00:19]} 24. O-O-O {[%clk 0:01:39]}  Ne5 {[%clk 0:00:18]} 25. Nxe5 {[%clk 0:01:38]}  fxe5 {[%clk 0:00:17]} 26. h4 {[%clk 0:01:31]}  c5 {[%clk 0:00:15]} 27. b5 {[%clk 0:01:28]}  e4 {[%clk 0:00:15]} 28. h5 {[%clk 0:01:24]}  Bc7 {[%clk 0:00:15]} 29. g4 {[%clk 0:01:23]}  Be5 {[%clk 0:00:14]} 30. g5 {[%clk 0:01:22]}  a6 {[%clk 0:00:13]} 31. bxa6 {[%clk 0:01:21]}  bxa6 {[%clk 0:00:13]} 32. g6 {[%clk 0:01:19]}  Rd6 {[%clk 0:00:11]} 33. Kc2 {[%clk 0:01:15]}  Rb7 {[%clk 0:00:06]} 34. Rb1 {[%clk 0:01:12]}  Rbd7 {[%clk 0:00:07]} 35. Rhd1 {[%clk 0:01:11]}  Bg7 {[%clk 0:00:05]} 36. d3 {[%clk 0:01:07]}  Re7 {[%clk 0:00:03]} 37. dxe4 {[%clk 0:01:01]}  Rxd1 {[%clk 0:00:04]} 38. Rxd1 {[%clk 0:01:02]}  Rxe4 {[%clk 0:00:05]} 39. Bxa6+ {[%clk 0:01:02]}  Kc7 {[%clk 0:00:05]} 40. Rf1 {[%clk 0:01:02]}  Kb6 {[%clk 0:00:04]} 41. Rf7 {[%clk 0:01:01]}  Bh6 {[%clk 0:00:03]} 42. Rf6+ {[%clk 0:00:51]}  Ka5 {[%clk 0:00:02]} 43. Bd3 {[%clk 0:00:51]}  Rh4 {[%clk 0:00:02]} 44. Ra6# {[%clk 0:00:51]} 1-0


[Site "https://www.chess.com"]

[Event "Titled Tuesday Blitz April 25 Early 2023"]
[White "Maurizzi, Marc`Andria"]
[Black "Korobov, Anton"]
[WhiteFideId "36083534"]
[BlackFideId "14105730"]
[WhiteElo "2421"]
[BlackElo "2638"]
[Result "0-1"]
[Round "02"]
[TimeControl "180+2"]
[Date "2023.04.25"]
[WhiteClock "0:00:10"]
[BlackClock "0:00:40"]

1. e4 {[%clk 0:03:00]}  c5 {[%clk 0:02:59]} 2. Nf3 {[%clk 0:03:00]}  d6 {[%clk 0:02:59]} 3. Bb5+ {[%clk 0:02:57]}  Nd7 {[%clk 0:02:59]} 4. a4 {[%clk 0:02:56]}  Nf6 {[%clk 0:02:55]} 5. Nc3 {[%clk 0:02:56]}  g6 {[%clk 0:02:55]} 6. O-O {[%clk 0:02:54]}  Bg7 {[%clk 0:02:53]} 7. a5 {[%clk 0:02:53]}  O-O {[%clk 0:02:52]} 8. Re1 {[%clk 0:02:53]}  Nb8 {[%clk 0:02:51]} 9. e5 {[%clk 0:02:52]}  Ne8 {[%clk 0:02:28]} 10. h3 {[%clk 0:02:38]}  a6 {[%clk 0:02:23]} 11. Bf1 {[%clk 0:02:37]}  Nc6 {[%clk 0:02:23]} 12. exd6 {[%clk 0:02:37]}  Nxd6 {[%clk 0:02:18]} 13. Nd5 {[%clk 0:02:32]}  Be6 {[%clk 0:02:08]} 14. Nb6 {[%clk 0:02:29]}  Rb8 {[%clk 0:02:08]} 15. Na4 {[%clk 0:02:23]}  Qxa5 {[%clk 0:02:03]} 16. d3 {[%clk 0:02:23]}  Bd5 {[%clk 0:01:46]} 17. Bd2 {[%clk 0:01:32]}  Bxf3 {[%clk 0:01:43]} 18. gxf3 {[%clk 0:01:33]}  Qc7 {[%clk 0:01:42]} 19. Nxc5 {[%clk 0:01:33]}  Bxb2 {[%clk 0:01:35]} 20. Rb1 {[%clk 0:01:33]}  Bd4 {[%clk 0:01:34]} 21. Be3 {[%clk 0:01:31]}  Nf5 {[%clk 0:01:33]} 22. Ne4 {[%clk 0:01:28]}  Nxe3 {[%clk 0:01:29]} 23. fxe3 {[%clk 0:01:28]}  Ba7 {[%clk 0:01:26]} 24. d4 {[%clk 0:01:23]}  f5 {[%clk 0:01:19]} 25. Nd2 {[%clk 0:01:13]}  f4 {[%clk 0:01:15]} 26. c3 {[%clk 0:01:09]}  e5 {[%clk 0:01:16]} 27. Kg2 {[%clk 0:00:53]}  fxe3 {[%clk 0:01:15]} 28. Rxe3 {[%clk 0:00:37]}  exd4 {[%clk 0:01:15]} 29. Re6 {[%clk 0:00:35]}  dxc3 {[%clk 0:01:05]} 30. Ne4 {[%clk 0:00:34]}  Nd4 {[%clk 0:01:03]} 31. Rd6 {[%clk 0:00:16]}  c2 {[%clk 0:01:00]} 32. Qc1 {[%clk 0:00:17]}  Nxf3 {[%clk 0:00:41]} 33. Rb3 {[%clk 0:00:13]}  Nh4+ {[%clk 0:00:41]} 34. Kg3 {[%clk 0:00:10]}  Nf5+ {[%clk 0:00:40]} 0-1


[Site "https://www.chess.com"]

[Event "Titled Tuesday Blitz April 25 Early 2023"]
[White "Nguyen, Ngoc Truong Son"]
[Black "Kozin, Yuri"]
[WhiteFideId "12401110"]
[BlackFideId "4129920"]
[WhiteElo "2556"]
[BlackElo "2619"]
[Result "1-0"]
[Round "02"]
[TimeControl "180+2"]
[Date "2023.04.25"]
[WhiteClock "0:00:17"]
[BlackClock "0:00:02"]

1. d4 {[%clk 0:03:00]}  d5 {[%clk 0:02:59]} 2. c4 {[%clk 0:03:01]}  c6 {[%clk 0:02:59]} 3. Nc3 {[%clk 0:03:01]}  Nf6 {[%clk 0:03:00]} 4. Nf3 {[%clk 0:03:01]}  dxc4 {[%clk 0:03:00]} 5. a4 {[%clk 0:03:01]}  Bf5 {[%clk 0:03:00]} 6. Ne5 {[%clk 0:03:01]}  e6 {[%clk 0:03:00]} 7. f3 {[%clk 0:03:00]}  Bb4 {[%clk 0:03:01]} 8. Kf2 {[%clk 0:02:59]}  Bc2 {[%clk 0:02:58]} 9. Qd2 {[%clk 0:02:48]}  Bb3 {[%clk 0:02:58]} 10. e4 {[%clk 0:02:45]}  c5 {[%clk 0:02:56]} 11. dxc5 {[%clk 0:02:11]}  Bxc5+ {[%clk 0:02:55]} 12. Ke1 {[%clk 0:02:10]}  Qc7 {[%clk 0:02:44]} 13. Qf4 {[%clk 0:01:55]}  O-O {[%clk 0:01:51]} 14. Bxc4 {[%clk 0:01:43]}  Bb4 {[%clk 0:01:39]} 15. Bxb3 {[%clk 0:01:09]}  Bxc3+ {[%clk 0:01:39]} 16. bxc3 {[%clk 0:01:09]}  Qxc3+ {[%clk 0:01:40]} 17. Kf2 {[%clk 0:01:09]}  Qxa1 {[%clk 0:01:29]} 18. Rd1 {[%clk 0:01:08]}  Nc6 {[%clk 0:01:11]} 19. Nxc6 {[%clk 0:01:08]}  bxc6 {[%clk 0:01:12]} 20. Qd2 {[%clk 0:01:08]}  Qe5 {[%clk 0:01:03]} 21. Bb2 {[%clk 0:01:07]}  Qxh2 {[%clk 0:01:01]} 22. Qg5 {[%clk 0:01:05]}  h6 {[%clk 0:00:56]} 23. Qc1 {[%clk 0:01:02]}  Rab8 {[%clk 0:00:49]} 24. Rh1 {[%clk 0:00:53]}  Qxh1 {[%clk 0:00:42]} 25. Qxh1 {[%clk 0:00:54]}  Rxb3 {[%clk 0:00:43]} 26. Bxf6 {[%clk 0:00:55]}  gxf6 {[%clk 0:00:44]} 27. Qxh6 {[%clk 0:00:55]}  Ra3 {[%clk 0:00:34]} 28. Qxf6 {[%clk 0:00:54]}  Rxa4 {[%clk 0:00:33]} 29. Kg3 {[%clk 0:00:54]}  Ra5 {[%clk 0:00:30]} 30. Kg4 {[%clk 0:00:53]}  Kh7 {[%clk 0:00:27]} 31. Qh4+ {[%clk 0:00:48]}  Kg7 {[%clk 0:00:26]} 32. Kf4 {[%clk 0:00:45]}  f6 {[%clk 0:00:22]} 33. Qe1 {[%clk 0:00:43]}  Rg5 {[%clk 0:00:20]} 34. Qd2 {[%clk 0:00:41]}  Rf7 {[%clk 0:00:16]} 35. g4 {[%clk 0:00:40]}  a5 {[%clk 0:00:16]} 36. Qd6 {[%clk 0:00:39]}  Rb5 {[%clk 0:00:09]} 37. Qxc6 {[%clk 0:00:40]}  e5+ {[%clk 0:00:08]} 38. Kf5 {[%clk 0:00:39]}  Rbb7 {[%clk 0:00:08]} 39. g5 {[%clk 0:00:38]}  fxg5+ {[%clk 0:00:08]} 40. Kxg5 {[%clk 0:00:39]}  a4 {[%clk 0:00:07]} 41. Qxa4 {[%clk 0:00:34]}  Rxf3 {[%clk 0:00:06]} 42. Qc6 {[%clk 0:00:31]}  Rff7 {[%clk 0:00:05]} 43. Qe6 {[%clk 0:00:29]}  Rbe7 {[%clk 0:00:04]} 44. Qd6 {[%clk 0:00:25]}  Re8 {[%clk 0:00:04]} 45. Qg6+ {[%clk 0:00:21]}  Kf8 {[%clk 0:00:04]} 46. Kh6 {[%clk 0:00:20]}  Ke7 {[%clk 0:00:02]} 47. Kg5 {[%clk 0:00:17]} 1-0


[Site "https://www.chess.com"]